[Event "MČR 2022 blesk"]
[Site "Turnov, Czech Republic"]
[Date "2022.09.10"]
[Round "4.1"]
[White "Polak, Tomas"]
[Black "Stocek, Jiri"]
[Result "1-0"]
[TimeControl "2x 3 min + 2s/move"]
[WhiteElo "2475"]
[BlackElo "2384"]

1. Nf3 {[%clk 00:03:02]} {[%emt 00:00:27]} d6 {[%clk 00:03:03]} 2. d4 {[%clk
00:03:02]} Nf6 {[%clk 00:03:03]} 3. c4 {[%clk 00:03:03]} Nbd7 {[%clk 00:03:02]}
4. Nc3 {[%clk 00:03:04]} {[%emt 00:00:05]} e5 {[%clk 00:03:02]} 5. e4 {[%clk
00:03:05]} Be7 {[%clk 00:03:03]} 6. Be2 {[%clk 00:03:06]} O-O {[%clk 00:03:03]}
7. O-O {[%clk 00:03:07]} a6 {[%clk 00:03:03]} 8. Qc2 {[%clk 00:03:08]} exd4
{[%clk 00:02:56]} 9. Nxd4 Re8 10. Re1 {[%clk 00:03:02]} Bf8 {[%clk 00:02:57]}
11. Bf1 {[%clk 00:03:01]} h6 {[%clk 00:02:57]} 12. Bf4 {[%clk 00:02:58]} Ne5
{[%clk 00:02:52]} 13. Rad1 {[%clk 00:02:55]} Ng6 {[%clk 00:02:44]} 14. Bc1
{[%clk 00:02:51]} Bg4 {[%clk 00:02:42]} 15. f3 {[%clk 00:02:44]} Bd7 {[%clk
00:02:43]} 16. Be3 {[%clk 00:02:43]} c6 {[%clk 00:02:36]} 17. Bf2 {[%clk
00:02:42]} Qc7 {[%clk 00:02:31]} 18. a3 {[%clk 00:02:16]} {[%emt 00:00:31]}
Rac8 {[%clk 00:02:24]} 19. b4 {[%clk 00:02:11]} b5 {[%clk 00:02:10]} {[%emt
00:00:10]} 20. Nb3 {[%clk 00:02:05]} c5 {[%clk 00:01:48]} {[%emt 00:00:05]} 21.
bxc5 {[%clk 00:01:59]} dxc5 {[%clk 00:01:45]} {[%emt 00:00:04]} 22. cxb5 {[%clk
00:01:55]} c4 {[%clk 00:01:46]} 23. Nd4 {[%clk 00:01:54]} Qa5 {[%clk 00:01:14]}
{[%emt 00:00:04]} 24. bxa6 {[%clk 00:01:49]} {[%emt 00:00:06]} Qxa6 {[%clk
00:01:12]} {[%emt 00:00:07]} 25. a4 {[%clk 00:01:47]} {[%emt 00:00:04]} Bb4
{[%clk 00:01:06]} {[%emt 00:00:05]} 26. Rc1 {[%clk 00:01:33]} {[%emt 00:00:16]}
Ne5 {[%clk 00:01:03]} {[%emt 00:00:05]} 27. Ndb5 {[%clk 00:01:30]} {[%emt
00:00:05]} Nh5 {[%clk 00:00:35]} {[%emt 00:00:30]} 28. Be3 {[%clk 00:01:22]}
{[%emt 00:00:17]} Bc5 {[%clk 00:00:22]} {[%emt 00:00:09]} 29. Bxc5 {[%clk
00:01:18]} {[%emt 00:00:06]} Rxc5 {[%clk 00:00:23]} 30. Qf2 {[%clk 00:01:14]}
{[%emt 00:00:10]} Rcc8 {[%clk 00:00:16]} {[%emt 00:00:06]} 31. Red1 {[%clk
00:01:12]} {[%emt 00:00:45]} Bxb5 {[%clk 00:00:13]} 32. axb5 {[%clk 00:01:11]}
Qa5 {[%clk 00:00:12]} 33. Qe3 {[%clk 00:00:50]} Red8 {[%clk 00:00:12]} 34. b6
{[%clk 00:00:46]} {[%emt 00:00:05]} Rxd1 {[%clk 00:00:10]} 35. Rxd1 {[%clk
00:00:47]} Nf6 {[%clk 00:00:07]} {[%emt 00:00:15]} 36. Nd5 {[%clk 00:00:40]}
Nxd5 {[%clk 00:00:07]} 37. Rxd5 {[%clk 00:00:40]} {[%emt 00:00:10]} Qb4 {[%clk
00:00:07]} 38. Rxe5 {[%clk 00:00:39]} c3 {[%clk 00:00:07]} {[%emt 00:00:04]} 39.
Rb5 {[%clk 00:00:38]} 1-0

[Event "MČR 2022 blesk"]
[Site "Turnov, Czech Republic"]
[Date "2022.09.10"]
[Round "4.2"]
[White "Neuman, Petr"]
[Black "Roubalik, Jakub"]
[Result "1-0"]
[TimeControl "2x 3 min + 2s/move"]
[WhiteElo "2352"]
[BlackElo "2276"]

1. e4 {[%clk 00:03:02]} {[%emt 00:00:10]} c5 {[%clk 00:03:03]} 2. Nf3 {[%clk
00:03:01]} Nc6 {[%clk 00:03:04]} 3. Bb5 {[%clk 00:03:02]} {[%emt 00:00:05]} e6
{[%clk 00:02:59]} {[%emt 00:00:09]} 4. O-O {[%clk 00:02:57]} Nge7 {[%clk
00:03:00]} 5. c3 {[%clk 00:02:58]} {[%emt 00:00:05]} a6 {[%clk 00:02:59]} 6.
Ba4 {[%clk 00:02:59]} b5 {[%clk 00:02:59]} {[%emt 00:00:04]} 7. Bc2 {[%clk
00:02:59]} Bb7 {[%clk 00:02:56]} {[%emt 00:00:05]} 8. a4 {[%clk 00:02:53]}
{[%emt 00:00:10]} d5 {[%clk 00:02:53]} {[%emt 00:00:05]} 9. Qe2 {[%clk
00:02:33]} {[%emt 00:00:19]} Qb6 {[%clk 00:02:42]} {[%emt 00:00:13]} 10. axb5
{[%clk 00:02:33]} {[%emt 00:00:06]} axb5 {[%clk 00:02:42]} 11. Rxa8+ {[%clk
00:02:27]} {[%emt 00:00:13]} Bxa8 {[%clk 00:02:44]} 12. d3 {[%clk 00:01:52]}
{[%emt 00:00:30]} g6 {[%clk 00:02:03]} {[%emt 00:00:43]} 13. Bg5 {[%clk
00:01:06]} {[%emt 00:00:47]} Bg7 {[%clk 00:02:02]} {[%emt 00:00:05]} 14. e5
{[%clk 00:01:04]} {[%emt 00:00:09]} Nxe5 {[%clk 00:01:19]} {[%emt 00:00:39]} 15.
Nxe5 {[%clk 00:01:01]} {[%emt 00:00:06]} f6 {[%clk 00:01:20]} 16. Bf4 {[%clk
00:00:59]} {[%emt 00:00:06]} fxe5 {[%clk 00:01:20]} {[%emt 00:00:05]} 17. Bxe5
{[%clk 00:01:00]} O-O {[%clk 00:01:18]} 18. Bxg7 {[%clk 00:01:01]} {[%emt
00:00:04]} Kxg7 {[%clk 00:01:19]} 19. Nd2 {[%clk 00:01:02]} Nf5 {[%clk
00:01:11]} {[%emt 00:00:12]} 20. Nf3 {[%clk 00:00:52]} {[%emt 00:00:13]} b4
{[%clk 00:00:56]} {[%emt 00:00:13]} 21. Ng5 {[%clk 00:00:48]} {[%emt 00:00:06]}
Re8 {[%clk 00:00:55]} {[%emt 00:00:06]} 22. Qe5+ {[%clk 00:00:49]} Kg8 {[%clk
00:00:51]} {[%emt 00:00:05]} 23. Re1 {[%clk 00:00:40]} {[%emt 00:00:17]} Ng7
{[%clk 00:00:51]} 24. h4 {[%clk 00:00:30]} {[%emt 00:00:10]} bxc3 {[%clk
00:00:50]} 25. bxc3 {[%clk 00:00:31]} Bb7 {[%clk 00:00:44]} {[%emt 00:00:14]}
1-0

[Event "MČR 2022 blesk"]
[Site "Turnov, Czech Republic"]
[Date "2022.09.10"]
[Round "4.3"]
[White "Nemec, Jachym"]
[Black "Petr, Martin"]
[Result "1/2-1/2"]
[TimeControl "2x 3 min + 2s/move"]
[WhiteElo "2130"]
[BlackElo "2446"]

1. d4 {[%clk 00:03:02]} {[%emt 00:00:06]} d5 {[%clk 00:03:03]} 2. c4 {[%clk
00:03:03]} {[%emt 00:00:05]} e6 {[%clk 00:03:04]} 3. Nc3 {[%clk 00:03:03]} Be7
{[%clk 00:03:04]} {[%emt 00:00:05]} 4. Nf3 {[%clk 00:02:57]} {[%emt 00:00:04]}
Nf6 {[%clk 00:03:03]} {[%emt 00:00:04]} 5. Bf4 {[%clk 00:02:46]} {[%emt
00:00:10]} O-O {[%clk 00:03:00]} {[%emt 00:00:10]} 6. e3 {[%clk 00:02:47]} Nbd7
{[%clk 00:03:01]} 7. cxd5 {[%clk 00:02:44]} {[%emt 00:00:04]} exd5 {[%clk
00:03:00]} {[%emt 00:00:04]} 8. Bd3 {[%clk 00:02:44]} {[%emt 00:00:05]} c6
{[%clk 00:02:39]} {[%emt 00:00:17]} 9. O-O {[%clk 00:02:39]} {[%emt 00:00:08]}
Re8 {[%clk 00:02:40]} 10. Rc1 {[%clk 00:02:40]} {[%emt 00:00:06]} Nf8 {[%clk
00:02:36]} {[%emt 00:00:05]} 11. a3 {[%clk 00:02:33]} {[%emt 00:00:05]} a5
{[%clk 00:02:23]} {[%emt 00:00:15]} 12. Qc2 {[%clk 00:02:30]} {[%emt 00:00:13]}
Ne6 {[%clk 00:01:41]} {[%emt 00:00:35]} 13. Bg3 {[%clk 00:02:30]} {[%emt
00:00:06]} g6 {[%clk 00:01:42]} 14. Rb1 {[%clk 00:02:11]} {[%emt 00:00:19]} Ng7
{[%clk 00:01:40]} {[%emt 00:00:07]} 15. b4 {[%clk 00:02:12]} axb4 {[%clk
00:01:41]} {[%emt 00:00:04]} 16. axb4 {[%clk 00:02:14]} Bf5 {[%clk 00:01:42]}
17. b5 {[%clk 00:02:12]} Bxd3 {[%clk 00:01:34]} {[%emt 00:00:10]} 18. Qxd3
{[%clk 00:02:13]} Ra3 {[%clk 00:01:34]} {[%emt 00:00:11]} 19. Nd2 {[%clk
00:02:09]} Bd6 {[%clk 00:01:21]} {[%emt 00:00:14]} 20. bxc6 {[%clk 00:02:05]}
{[%emt 00:00:06]} bxc6 {[%clk 00:01:21]} 21. Rb3 {[%clk 00:01:40]} {[%emt
00:00:28]} Rxb3 {[%clk 00:01:05]} {[%emt 00:00:18]} 22. Nxb3 {[%clk 00:01:40]}
{[%emt 00:00:11]} Bxg3 {[%clk 00:01:07]} 23. hxg3 {[%clk 00:01:41]} Ng4 {[%clk
00:01:06]} 24. Nd2 {[%clk 00:01:29]} {[%emt 00:00:13]} Qg5 {[%clk 00:00:55]}
{[%emt 00:00:20]} 25. Nf3 {[%clk 00:01:29]} Qh5 {[%clk 00:00:51]} 26. Ne2
{[%clk 00:01:29]} {[%emt 00:00:04]} Ne6 {[%clk 00:00:51]} 27. Nf4 {[%clk
00:01:21]} {[%emt 00:00:08]} Qh6 {[%clk 00:00:39]} {[%emt 00:00:19]} 28. Rc1
{[%clk 00:01:09]} {[%emt 00:00:08]} Ng5 {[%clk 00:00:36]} {[%emt 00:00:06]} 29.
Nh3 {[%clk 00:00:32]} {[%emt 00:00:42]} Nxf3+ {[%clk 00:00:36]} 30. gxf3 {[%clk
00:00:31]} {[%emt 00:00:05]} Qxh3 {[%clk 00:00:25]} {[%emt 00:00:09]} 31. fxg4
{[%clk 00:00:32]} Qxg4 {[%clk 00:00:21]} {[%emt 00:00:15]} 32. Rxc6 {[%clk
00:00:32]} h5 {[%clk 00:00:21]} 33. Rc2 {[%clk 00:00:14]} {[%emt 00:00:18]} Rb8
{[%clk 00:00:16]} {[%emt 00:00:06]} 34. Kg2 {[%clk 00:00:10]} {[%emt 00:00:14]}
h4 {[%clk 00:00:15]} 35. Qe2 {[%clk 00:00:11]} Qxe2 {[%clk 00:00:09]} {[%emt
00:00:08]} 36. Rxe2 {[%clk 00:00:12]} hxg3 {[%clk 00:00:10]} 1/2-1/2

[Event "MČR 2022 blesk"]
[Site "Turnov, Czech Republic"]
[Date "2022.09.10"]
[Round "4.4"]
[White "Klement, Lukas"]
[Black "Pisk, Petr"]
[Result "1/2-1/2"]
[TimeControl "2x 3 min + 2s/move"]
[WhiteElo "2256"]
[BlackElo "2312"]

1. d4 {[%clk 00:03:01]} d5 {[%clk 00:03:01]} 2. Nf3 {[%clk 00:03:02]} e6 {[%clk
00:03:01]} 3. c4 {[%clk 00:03:02]} {[%emt 00:00:04]} c5 {[%clk 00:03:00]}
{[%emt 00:00:05]} 4. cxd5 {[%clk 00:02:48]} {[%emt 00:00:09]} exd5 {[%clk
00:03:00]} {[%emt 00:00:10]} 5. Nc3 {[%clk 00:02:46]} Nc6 {[%clk 00:03:00]} 6.
dxc5 {[%clk 00:02:05]} {[%emt 00:00:59]} d4 {[%clk 00:02:59]} 7. Nb1 {[%clk
00:01:41]} {[%emt 00:00:12]} Bxc5 {[%clk 00:02:55]} {[%emt 00:00:06]} 8. g3
{[%clk 00:01:33]} {[%emt 00:00:11]} Nf6 {[%clk 00:02:52]} {[%emt 00:00:06]} 9.
Bg2 {[%clk 00:01:34]} O-O {[%clk 00:02:49]} {[%emt 00:00:09]} 10. O-O {[%clk
00:01:34]} h6 {[%clk 00:02:42]} {[%emt 00:00:11]} 11. Nbd2 {[%clk 00:01:30]}
{[%emt 00:00:08]} Re8 {[%clk 00:02:43]} 12. Nb3 {[%clk 00:01:28]} Bb6 {[%clk
00:02:43]} 13. Bd2 {[%clk 00:01:07]} {[%emt 00:00:23]} Be6 {[%clk 00:02:15]}
{[%emt 00:00:37]} 14. Rc1 {[%clk 00:01:06]} Qd7 {[%clk 00:02:06]} {[%emt
00:00:15]} 15. Re1 {[%clk 00:01:02]} Bh3 {[%clk 00:01:58]} {[%emt 00:00:10]} 16.
a3 {[%clk 00:00:58]} {[%emt 00:00:09]} Bxg2 {[%clk 00:01:57]} 17. Kxg2 {[%clk
00:00:59]} Rad8 {[%clk 00:01:53]} {[%emt 00:00:16]} 18. Nc5 {[%clk 00:00:50]}
Bxc5 {[%clk 00:01:44]} {[%emt 00:00:13]} 19. Rxc5 {[%clk 00:00:52]} Ne4 {[%clk
00:01:42]} {[%emt 00:00:06]} 20. Rc1 {[%clk 00:00:51]} Qd5 {[%clk 00:01:38]}
{[%emt 00:00:05]} 21. b4 {[%clk 00:00:43]} {[%emt 00:00:13]} Re6 {[%clk
00:01:33]} {[%emt 00:00:08]} 22. Qc2 {[%clk 00:00:34]} {[%emt 00:00:05]} Ne5
{[%clk 00:00:51]} {[%emt 00:00:45]} 23. Nxe5 {[%clk 00:00:21]} {[%emt
00:00:14]} Nxd2+ {[%clk 00:00:47]} {[%emt 00:00:07]} 24. Kg1 {[%clk 00:00:19]}
{[%emt 00:00:07]} Nb3 {[%clk 00:00:38]} {[%emt 00:00:09]} 25. e4 {[%clk
00:00:19]} dxe3 {[%clk 00:00:32]} {[%emt 00:00:15]} 26. Rcd1 {[%clk 00:00:05]}
{[%emt 00:00:17]} exf2+ {[%clk 00:00:32]} 27. Qxf2 {[%clk 00:00:05]} Qxd1
{[%clk 00:00:32]} {[%emt 00:00:12]} 28. Qxf7+ {[%clk 00:00:03]} Kh7 {[%clk
00:00:29]} 29. Qf5+ {[%clk 00:00:03]} {[%emt 00:00:05]} Kh8 {[%clk 00:00:19]}
{[%emt 00:00:04]} 30. Nf7+ {[%clk 00:00:04]} {[%emt 00:00:09]} Kg8 {[%clk
00:00:21]} 31. Qxe6 {[%clk 00:00:04]} Qd4+ {[%clk 00:00:21]} 32. Kh1 {[%clk
00:00:05]} Qd5+ {[%clk 00:00:22]} {[%emt 00:00:05]} 33. Qxd5 Rxd5 {[%clk
00:00:23]} 34. Ne5 {[%clk 00:00:06]} Nd4 {[%clk 00:00:19]} {[%emt 00:00:07]} 35.
Nc4 {[%clk 00:00:06]} Nc6 {[%clk 00:00:19]} {[%emt 00:00:04]} 36. Re3 {[%clk
00:00:05]} Rd4 {[%clk 00:00:19]} 37. Ne5 {[%clk 00:00:06]} {[%emt 00:00:13]}
Nxe5 38. Rxe5 {[%clk 00:00:07]} Rd3 {[%clk 00:00:21]} 39. Re7 {[%clk 00:00:08]}
Rxa3 {[%clk 00:00:22]} {[%emt 00:00:05]} 40. Rxb7 {[%clk 00:00:09]} a5 {[%clk
00:00:22]} 41. bxa5 1/2-1/2

[Event "MČR 2022 blesk"]
[Site "Turnov, Czech Republic"]
[Date "2022.09.10"]
[Round "4.5"]
[White "Plat, Vojtech"]
[Black "Dolezal, Radoslav"]
[Result "1/2-1/2"]
[TimeControl "2x 3 min + 2s/move"]
[WhiteElo "2484"]
[BlackElo "2347"]

1. e4 {[%clk 00:03:03]} e5 {[%clk 00:03:03]} {[%emt 00:00:05]} 2. Nf3 {[%clk
00:03:04]} Nc6 {[%clk 00:03:04]} 3. d4 exd4 {[%clk 00:03:05]} 4. Nxd4 {[%clk
00:03:07]} Nf6 {[%clk 00:03:06]} {[%emt 00:00:04]} 5. Nxc6 {[%clk 00:03:08]}
bxc6 {[%clk 00:03:07]} 6. e5 {[%clk 00:03:09]} Qe7 {[%clk 00:03:08]} {[%emt
00:00:04]} 7. Qe2 {[%clk 00:03:10]} Nd5 {[%clk 00:03:09]} 8. c4 {[%clk
00:03:12]} Ba6 {[%clk 00:03:10]} 9. b3 {[%clk 00:03:11]} g6 {[%clk 00:03:10]}
{[%emt 00:00:09]} 10. g3 {[%clk 00:03:13]} Bg7 {[%clk 00:03:11]} 11. Bb2 {[%clk
00:03:14]} O-O {[%clk 00:03:12]} 12. Bg2 {[%clk 00:03:15]} Rae8 {[%clk
00:03:13]} {[%emt 00:00:05]} 13. O-O {[%clk 00:03:16]} f6 {[%clk 00:03:05]}
{[%emt 00:00:15]} 14. Qd2 {[%clk 00:02:49]} {[%emt 00:00:17]} Nb6 {[%clk
00:03:04]} {[%emt 00:00:05]} 15. Qa5 {[%clk 00:02:44]} {[%emt 00:00:04]} Bxc4
{[%clk 00:02:34]} {[%emt 00:00:38]} 16. Ba3 {[%clk 00:02:12]} {[%emt 00:01:30]}
Qf7 {[%clk 00:02:18]} 17. Re1 {[%clk 00:01:44]} fxe5 {[%clk 00:02:09]} 18. Bxf8
{[%clk 00:01:43]} {[%emt 00:00:05]} Rxf8 {[%clk 00:02:10]} 19. bxc4 {[%clk
00:01:23]} {[%emt 00:00:18]} Qxf2+ {[%clk 00:02:10]} {[%emt 00:00:05]} 20. Kh1
{[%clk 00:01:25]} Nxc4 {[%clk 00:02:10]} 21. Qc3 {[%clk 00:01:13]} {[%emt
00:00:13]} d5 {[%clk 00:02:11]} 22. Rf1 {[%clk 00:01:01]} {[%emt 00:00:18]} Qe2
{[%clk 00:02:00]} {[%emt 00:00:10]} 23. Na3 {[%clk 00:00:48]} {[%emt 00:00:23]}
Ne3 {[%clk 00:01:48]} {[%emt 00:00:10]} 24. Rxf8+ {[%clk 00:00:48]} Bxf8 {[%clk
00:01:44]} {[%emt 00:00:08]} 25. Rg1 {[%clk 00:00:50]} Bxa3 {[%clk 00:00:38]}
{[%emt 00:01:04]} 26. Qxc6 {[%clk 00:00:44]} {[%emt 00:00:08]} e4 {[%clk
00:00:28]} {[%emt 00:00:11]} 27. Qe6+ {[%clk 00:00:39]} {[%emt 00:00:12]} Kg7
{[%clk 00:00:28]} 28. Qe5+ {[%clk 00:00:36]} {[%emt 00:00:24]} Kg8 {[%clk
00:00:28]} 29. Qe6+ {[%clk 00:00:22]} Kg7 {[%clk 00:00:30]} 30. Qe5+ {[%clk
00:00:18]} {[%emt 00:00:29]} 1/2-1/2

[Event "MČR 2022 blesk"]
[Site "Turnov, Czech Republic"]
[Date "2022.09.10"]
[Round "4.6"]
[White "Postupa, Pavel"]
[Black "Cerveny, Martin"]
[Result "0-1"]
[TimeControl "2x 3 min + 2s/move"]
[WhiteElo "2223"]
[BlackElo "2288"]

1. e4 {[%clk 00:03:02]} {[%emt 00:00:06]} c5 {[%clk 00:03:04]} 2. Nf3 {[%clk
00:03:02]} {[%emt 00:00:05]} d6 {[%clk 00:03:05]} 3. d4 {[%clk 00:03:02]} cxd4
{[%clk 00:03:06]} 4. Nxd4 {[%clk 00:03:03]} Nf6 {[%clk 00:03:07]} 5. Nc3 {[%clk
00:03:03]} {[%emt 00:00:05]} a6 {[%clk 00:03:09]} 6. g3 {[%clk 00:03:04]} e5
{[%clk 00:03:10]} {[%emt 00:00:08]} 7. Nb3 {[%clk 00:03:04]} Nbd7 {[%clk
00:03:11]} 8. Bg2 {[%clk 00:03:05]} b5 {[%clk 00:03:09]} {[%emt 00:00:05]} 9.
a4 {[%clk 00:03:04]} b4 {[%clk 00:03:09]} 10. Nd5 {[%clk 00:03:05]} {[%emt
00:00:04]} a5 {[%clk 00:02:56]} {[%emt 00:00:11]} 11. O-O {[%clk 00:03:04]}
{[%emt 00:00:06]} Bb7 {[%clk 00:02:55]} {[%emt 00:00:05]} 12. Bd2 {[%clk
00:02:57]} {[%emt 00:00:06]} Nxd5 {[%clk 00:02:52]} {[%emt 00:00:04]} 13. exd5
{[%clk 00:02:57]} {[%emt 00:00:07]} Be7 {[%clk 00:02:47]} {[%emt 00:00:05]} 14.
c3 {[%clk 00:02:53]} {[%emt 00:00:05]} bxc3 {[%clk 00:02:45]} {[%emt 00:00:04]}
15. Bxc3 {[%clk 00:02:53]} Qb6 {[%clk 00:02:32]} {[%emt 00:00:16]} 16. Ra3
{[%clk 00:02:48]} {[%emt 00:00:04]} O-O {[%clk 00:02:25]} {[%emt 00:00:10]} 17.
Qd2 {[%clk 00:02:33]} {[%emt 00:00:14]} Bd8 {[%clk 00:02:25]} {[%emt 00:00:05]}
18. Kh1 {[%clk 00:02:15]} {[%emt 00:00:20]} Qa7 {[%clk 00:01:59]} {[%emt
00:00:27]} 19. f4 {[%clk 00:02:13]} {[%emt 00:00:04]} Bb6 {[%clk 00:01:43]}
{[%emt 00:00:19]} 20. fxe5 {[%clk 00:02:07]} {[%emt 00:00:08]} Nxe5 {[%clk
00:01:42]} {[%emt 00:00:06]} 21. Nd4 {[%clk 00:01:39]} {[%emt 00:00:32]} Nc4
{[%clk 00:01:22]} {[%emt 00:00:17]} 22. Qf4 {[%clk 00:01:32]} {[%emt 00:00:09]}
Nxa3 {[%clk 00:01:17]} {[%emt 00:00:32]} 23. bxa3 {[%clk 00:01:33]} Rac8 {[%clk
00:01:07]} 24. Nb5 {[%clk 00:01:33]} Qb8 {[%clk 00:00:56]} {[%emt 00:00:10]} 25.
Bxg7 {[%clk 00:01:28]} Kxg7 {[%clk 00:00:42]} {[%emt 00:00:17]} 26. Qg5+ {[%clk
00:01:30]} Kh8 {[%clk 00:00:43]} 27. Qf6+ {[%clk 00:01:19]} {[%emt 00:00:15]}
Kg8 {[%clk 00:00:45]} 28. Rf4 {[%clk 00:00:30]} {[%emt 00:00:48]} Rc1+ {[%clk
00:00:46]} 29. Bf1 {[%clk 00:00:32]} Rxf1+ {[%clk 00:00:45]} {[%emt 00:00:51]}
30. Rxf1 {[%clk 00:00:33]} Bxd5+ {[%clk 00:00:46]} 31. Rf3 {[%clk 00:00:29]}
Bxf3+ {[%clk 00:00:47]} 32. Qxf3 {[%clk 00:00:29]} Qa8 {[%clk 00:00:48]} 33.
Kg1 0-1

[Event "MČR 2022 blesk"]
[Site "Turnov, Czech Republic"]
[Date "2022.09.10"]
[Round "4.7"]
[White "Balacek, Tadeas"]
[Black "Sindler, Michal"]
[Result "1-0"]
[TimeControl "2x 3 min + 2s/move"]
[WhiteElo "2257"]
[BlackElo "2188"]

1. d4 {[%clk 00:03:02]} Nf6 {[%clk 00:03:04]} 2. Nf3 g6 3. c4 {[%clk 00:03:04]}
Bg7 {[%clk 00:03:06]} {[%emt 00:00:08]} 4. Nc3 {[%clk 00:03:05]} O-O {[%clk
00:03:07]} 5. Bg5 {[%clk 00:03:06]} d6 {[%clk 00:03:06]} {[%emt 00:00:05]} 6.
e3 {[%clk 00:03:06]} Nbd7 {[%clk 00:02:56]} {[%emt 00:00:10]} 7. Be2 {[%clk
00:03:06]} e5 {[%clk 00:02:54]} {[%emt 00:00:04]} 8. h3 {[%clk 00:03:05]} Re8
{[%clk 00:02:44]} {[%emt 00:00:20]} 9. O-O {[%clk 00:03:04]} h6 {[%clk
00:02:31]} {[%emt 00:00:09]} 10. Bh4 {[%clk 00:03:05]} c6 {[%clk 00:02:10]}
{[%emt 00:00:24]} 11. Qc2 {[%clk 00:03:06]} Nf8 {[%clk 00:01:48]} {[%emt
00:00:48]} 12. Rfd1 {[%clk 00:03:05]} Qe7 {[%clk 00:01:47]} 13. Bg3 {[%clk
00:02:54]} Bf5 {[%clk 00:01:23]} {[%emt 00:00:26]} 14. Qc1 {[%clk 00:02:53]}
Ne4 {[%clk 00:01:19]} {[%emt 00:00:07]} 15. Nxe4 {[%clk 00:02:52]} {[%emt
00:00:09]} Bxe4 {[%clk 00:01:20]} 16. Qd2 {[%clk 00:02:14]} {[%emt 00:00:37]}
Bxf3 {[%clk 00:01:11]} {[%emt 00:00:15]} 17. Bxf3 {[%clk 00:02:15]} e4 {[%clk
00:01:09]} 18. Be2 {[%clk 00:02:13]} {[%emt 00:00:04]} Nh7 {[%clk 00:01:09]}
{[%emt 00:00:05]} 19. b4 {[%clk 00:01:53]} {[%emt 00:00:16]} c5 {[%clk
00:00:54]} {[%emt 00:00:27]} 20. bxc5 {[%clk 00:01:41]} {[%emt 00:00:11]} dxc5
{[%clk 00:00:54]} 21. Rab1 {[%clk 00:01:43]} cxd4 {[%clk 00:00:53]} {[%emt
00:00:09]} 22. exd4 {[%clk 00:01:44]} b6 {[%clk 00:00:50]} 23. Rbc1 {[%clk
00:01:11]} {[%emt 00:00:30]} Bf6 {[%clk 00:00:43]} {[%emt 00:00:08]} 24. Bf4
{[%clk 00:00:45]} {[%emt 00:00:47]} Rad8 {[%clk 00:00:21]} {[%emt 00:00:09]} 25.
Qe3 {[%clk 00:00:43]} {[%emt 00:00:09]} Bg7 {[%clk 00:00:17]} 26. c5 {[%clk
00:00:34]} {[%emt 00:00:07]} g5 {[%clk 00:00:06]} {[%emt 00:00:14]} 27. Bd6
{[%clk 00:00:18]} {[%emt 00:00:19]} Qe6 {[%clk 00:00:03]} {[%emt 00:00:07]} 28.
Bc4 {[%clk 00:00:18]} {[%emt 00:00:14]} 1-0

[Event "MČR 2022 blesk"]
[Site "Turnov, Czech Republic"]
[Date "2022.09.10"]
[Round "5.1"]
[White "Stocek, Jiri"]
[Black "Plat, Vojtech"]
[Result "1/2-1/2"]
[TimeControl "2x 3 min + 2s/move"]
[WhiteElo "2384"]
[BlackElo "2484"]

1. e4 {[%clk 00:03:01]} d6 {[%clk 00:03:04]} 2. d4 {[%clk 00:03:01]} {[%emt
00:00:04]} Nf6 {[%clk 00:03:05]} 3. f3 {[%clk 00:03:02]} e5 {[%clk 00:03:06]}
{[%emt 00:00:05]} 4. d5 {[%clk 00:03:02]} {[%emt 00:00:08]} c6 {[%clk
00:03:07]} 5. c4 {[%clk 00:03:01]} Nbd7 {[%clk 00:03:08]} 6. Be3 {[%clk
00:03:00]} {[%emt 00:00:05]} Be7 {[%clk 00:03:09]} 7. Nc3 {[%clk 00:03:01]} O-O
{[%clk 00:03:10]} 8. Qd2 {[%clk 00:03:00]} {[%emt 00:00:05]} a5 {[%clk
00:03:10]} 9. Bd3 {[%clk 00:02:58]} {[%emt 00:00:04]} cxd5 {[%clk 00:03:11]} 10.
cxd5 {[%clk 00:02:58]} {[%emt 00:00:09]} b6 {[%clk 00:03:12]} 11. Nge2 {[%clk
00:02:56]} Nc5 {[%clk 00:03:10]} {[%emt 00:00:14]} 12. Bb5 {[%clk 00:02:56]}
Bd7 {[%clk 00:03:09]} 13. O-O {[%clk 00:02:27]} {[%emt 00:00:26]} Bxb5 {[%clk
00:02:59]} {[%emt 00:00:11]} 14. Nxb5 {[%clk 00:02:27]} Qd7 {[%clk 00:03:01]}
{[%emt 00:00:04]} 15. Nec3 {[%clk 00:02:26]} Nh5 {[%clk 00:02:58]} {[%emt
00:00:04]} 16. Rad1 {[%clk 00:02:07]} {[%emt 00:00:19]} f5 {[%clk 00:02:57]}
{[%emt 00:00:06]} 17. exf5 {[%clk 00:02:06]} {[%emt 00:00:05]} Qxf5 {[%clk
00:02:56]} 18. Bxc5 {[%clk 00:02:01]} {[%emt 00:00:06]} bxc5 {[%clk 00:02:57]}
19. Nc7 {[%clk 00:02:01]} {[%emt 00:00:05]} Rab8 {[%clk 00:02:50]} {[%emt
00:00:06]} 20. Ne6 {[%clk 00:02:01]} Rf7 {[%clk 00:02:43]} {[%emt 00:00:15]} 21.
Ne4 {[%clk 00:01:57]} {[%emt 00:00:05]} a4 {[%clk 00:01:59]} {[%emt 00:00:43]}
22. Rf2 {[%clk 00:01:47]} {[%emt 00:00:12]} h6 {[%clk 00:01:36]} {[%emt
00:00:25]} 23. Qa5 {[%clk 00:01:35]} {[%emt 00:00:13]} Nf6 {[%clk 00:01:11]}
{[%emt 00:00:28]} 24. Nxf6+ {[%clk 00:01:16]} {[%emt 00:00:21]} Bxf6 {[%clk
00:01:09]} {[%emt 00:00:09]} 25. Qxa4 {[%clk 00:01:15]} Rfb7 {[%clk 00:01:10]}
26. b3 {[%clk 00:01:04]} {[%emt 00:00:13]} Qg6 {[%clk 00:00:56]} {[%emt
00:00:14]} 27. Qe4 {[%clk 00:00:55]} {[%emt 00:00:11]} Qe8 {[%clk 00:00:54]}
{[%emt 00:00:06]} 28. Rc2 {[%clk 00:00:53]} {[%emt 00:00:05]} Ra7 {[%clk
00:00:53]} {[%emt 00:00:04]} 29. Rdd2 {[%clk 00:00:49]} {[%emt 00:00:04]} Qb5
{[%clk 00:00:48]} {[%emt 00:00:07]} 30. Qc4 {[%clk 00:00:40]} {[%emt 00:00:10]}
Qa5 {[%clk 00:00:46]} {[%emt 00:00:06]} 31. Qd3 {[%clk 00:00:30]} {[%emt
00:00:10]} Qb6 {[%clk 00:00:42]} {[%emt 00:00:06]} 32. Kh1 {[%clk 00:00:28]}
{[%emt 00:00:07]} Qb4 {[%clk 00:00:38]} {[%emt 00:00:06]} 33. g3 {[%clk
00:00:26]} {[%emt 00:00:05]} Rba8 {[%clk 00:00:35]} {[%emt 00:00:04]} 34. Kg2
{[%clk 00:00:26]} {[%emt 00:00:05]} Ra3 {[%clk 00:00:33]} 35. Qc4 {[%clk
00:00:24]} {[%emt 00:00:05]} Qa5 {[%clk 00:00:34]} 36. Qe2 {[%clk 00:00:20]}
{[%emt 00:00:10]} Qa7 {[%clk 00:00:33]} 37. h4 {[%clk 00:00:18]} {[%emt
00:00:05]} Qf7 {[%clk 00:00:33]} 38. Qe4 {[%clk 00:00:18]} Bd8 {[%clk
00:00:29]} {[%emt 00:00:08]} 39. Re2 {[%clk 00:00:16]} {[%emt 00:00:05]}
1/2-1/2